bitfinex/quotes_SOLUSD_20230116
["timestamp","ask_amount","ask_price","bid_price","bid_amount"]
[1673899177418,17.0,23.565,23.545,41.46196354]
[1673899177820,17.0,23.565,23.539,20.0]
[1673899178034,20.0,23.564,23.539,20.0]
[1673899178255,38.60818733,23.564,23.539,20.0]
[1673899178462,32.08397055,23.563,23.534,20.0]
[1673899178679,20.0,23.562,23.532,21.46196354]
[1673899178889,135.2189,23.561,23.532,21.46196354]
[1673899179201,135.2189,23.561,23.518,313.63735878]
[1673899179202,20.0,23.56,23.523,31.60106272]
[1673899179514,17.0,23.559,23.525,21.46196354]
[1673899179732,24.88741,23.558,23.531,20.0]
[1673899179940,17.0,23.557,23.531,20.0]
[1673899180133,20.0,23.556,23.531,20.0]
[1673899180338,17.0,23.555,23.531,20.0]
[1673899180652,20.0,23.554,23.525,21.46196354]
[1673899180865,17.0,23.553,23.525,21.46196354]
[1673899181095,20.0,23.552,23.526,38.46196354]
[1673899181300,17.0,23.551,23.526,38.46196354]
[1673899181618,20.0,23.552,23.527,21.46196354]
[1673899181806,134.4888,23.55,23.528,17.0]
[1673899182017,114.4888,23.55,23.528,17.0]
[1673899182229,114.4888,23.55,23.529,41.46196354]
[1673899182459,114.4888,23.55,23.53,17.0]
[1673899182674,114.4888,23.55,23.53,38.46196354]
[1673899182675,20.0,23.549,23.53,38.46196354]
[1673899182868,20.0,23.549,23.531,41.46196354]
[1673899183191,114.4888,23.55,23.532,21.46196354]
[1673899183395,17.0,23.549,23.533,20.0]
[1673899183605,37.0,23.549,23.533,20.0]
[1673899183823,37.0,23.549,23.533,41.46196354]
[1673899184015,37.0,23.549,23.533,20.0]
[1673899184360,37.0,23.549,23.531,20.0]
[1673899184539,20.0,23.555,23.534,21.46196354]
[1673899184752,20.0,23.556,23.536,7.8793249]
[1673899184955,20.0,23.556,23.537,21.90226]
[1673899185191,20.0,23.559,23.538,28.95328778]
[1673899185404,20.0,23.569,23.54,6.27077052]
[1673899185716,20.0,23.572,23.542,6.94116985]
[1673899185918,20.0,23.572,23.543,41.90101]
[1673899186113,20.0,23.572,23.544,6.58164775]
[1673899186320,20.0,23.578,23.545,37.0]
[1673899186535,20.0,23.578,23.545,85.72380971]
[1673899186761,112.6998,23.579,23.545,107.18577325]
[1673899186971,112.6998,23.579,23.546,70.18577325]
[1673899187178,112.6998,23.579,23.547,20.0]
[1673899187592,20.0,23.578,23.547,41.46196354]
[1673899187925,20.0,23.578,23.548,29.13574319]
[1673899188235,20.0,23.578,23.549,27.22663996]
[1673899188442,20.0,23.594,23.551,7.46601631]
[1673899188443,108.3588,23.593,23.551,7.46601631]
[1673899188669,108.3588,23.593,23.552,21.89914]
[1673899188866,29.8898967,23.591,23.553,21.89893]
[1673899189063,29.8898967,23.591,23.552,20.0]
[1673899189272,20.0,23.592,23.553,41.46196354]
[1673899189697,20.0,23.581,23.554,21.46196354]
[1673899189921,131.8042,23.581,23.554,21.46196354]
[1673899190112,17.0,23.58,23.551,20.0]
[1673899190329,20.0,23.579,23.552,63.68577325]
[1673899190533,20.0,23.579,23.553,50.01014649]
[1673899190742,20.0,23.579,23.553,108.38325307]
[1673899190953,20.0,23.579,23.554,21.46196354]
[1673899191158,20.0,23.579,23.554,71.47211003]
[1673899191380,20.0,23.579,23.555,67.01014649]
[1673899191589,20.0,23.579,23.555,88.47211003]
[1673899191798,20.0,23.579,23.556,41.46196354]
[1673899192024,111.8042,23.581,23.557,37.0]
[1673899192236,111.8042,23.581,23.558,20.0]
[1673899192436,111.8042,23.581,23.559,17.0]
[1673899192759,111.8042,23.581,23.561,20.0]
[1673899193076,111.8042,23.581,23.562,37.0]
[1673899193263,111.8042,23.581,23.562,58.46196354]
[1673899193597,20.0,23.58,23.563,21.46196354]
[1673899193812,20.0,23.58,23.564,20.0]
[1673899194441,20.0,23.58,23.565,38.46196354]
[1673899194844,20.0,23.58,23.566,21.46196354]
[1673899195683,20.0,23.58,23.564,20.0]
[1673899195900,17.0,23.579,23.558,41.46196354]
[1673899196226,20.0,23.578,23.558,21.46196354]
[1673899196443,17.0,23.577,23.55,20.0]
[1673899196655,20.0,23.576,23.551,21.46196354]
[1673899196975,17.0,23.575,23.551,21.46196354]
[1673899197284,20.0,23.574,23.551,21.46196354]
[1673899197490,20.0,23.574,23.552,17.0]
[1673899197701,20.0,23.574,23.553,20.0]
[1673899197910,20.0,23.574,23.554,17.0]
[1673899198120,20.0,23.574,23.554,38.46196354]
[1673899198443,20.0,23.574,23.555,21.46196354]
[1673899198646,20.0,23.574,23.556,17.0]
[1673899199173,20.0,23.574,23.557,21.46196354]
[1673899201380,17.0,23.573,23.557,21.46196354]
[1673899201689,20.0,23.572,23.557,21.46196354]
[1673899201907,17.0,23.571,23.557,21.46196354]
[1673899202121,20.0,23.572,23.557,21.46196354]
[1673899202834,20.0,23.574,23.558,17.0]
[1673899203165,20.0,23.574,23.559,21.46196354]
[1673899203378,20.0,23.574,23.56,17.0]
[1673899203581,131.8042,23.581,23.56,17.0]
[1673899203777,131.8042,23.581,23.561,41.46196354]
[1673899204104,30.97142737,23.579,23.561,20.0]
[1673899204324,30.97142737,23.579,23.555,21.46196354]
[1673899204523,20.0,23.578,23.562,21.46196354]
[1673899204846,20.0,23.578,23.563,20.0]
[1673899205251,20.0,23.578,23.564,21.46196354]
[1673899205467,20.0,23.578,23.565,20.0]
[1673899205888,20.0,23.578,23.566,21.46196354]
[1673899206419,131.8042,23.581,23.567,17.0]
[1673899206632,131.8042,23.581,23.566,21.46196354]
[1673899206824,131.8042,23.581,23.568,21.46196354]
[1673899208627,111.8042,23.581,23.569,17.0]
[1673899208841,20.0,23.588,23.568,21.46196354]
[1673899209034,109.3645,23.587,23.57,21.46196354]
[1673899209783,109.3645,23.587,23.571,17.0]
[1673899210199,109.3645,23.587,23.572,42.92392708]
[1673899210397,109.3645,23.587,23.572,21.46196354]
[1673899210825,109.3645,23.587,23.573,17.0]
[1673899211356,4.9540221,23.606,23.574,21.46196354]
[1673899211551,108.9068,23.594,23.576,20.0]
[1673899212084,108.9068,23.594,23.578,20.0]
[1673899212518,108.9068,23.594,23.579,38.46196354]
[1673899212720,108.9068,23.594,23.58,20.0]
[1673899212920,108.9068,23.594,23.58,41.46196354]
[1673899213131,108.9068,23.594,23.581,21.46196354]
[1673899213776,108.9068,23.594,23.582,17.0]
[1673899214185,108.9068,23.594,23.583,42.92392708]
[1673899214398,108.9068,23.594,23.583,21.46196354]
[1673899215465,20.0,23.593,23.583,21.46196354]
[1673899215653,108.9068,23.594,23.583,21.46196354]
[1673899216513,20.0,23.607,23.583,21.46196354]
[1673899216703,111.8946,23.604,23.584,20.0]
[1673899217346,30.7962567,23.603,23.579,20.0]
[1673899217554,20.0,23.602,23.57,20.0]
[1673899217770,20.0,23.601,23.575,20.0]
[1673899217959,20.0,23.599,23.57,20.0]
[1673899218179,17.0,23.598,23.574,21.46196354]
[1673899218397,17.0,23.598,23.57,20.0]
[1673899218612,20.0,23.597,23.57,20.0]
[1673899218832,17.0,23.596,23.57,20.0]
[1673899219226,138.5683,23.595,23.571,21.46196354]
[1673899219435,20.0,23.593,23.571,21.46196354]
[1673899219654,17.0,23.592,23.571,21.46196354]
[1673899219874,131.377,23.592,23.572,37.0]
[1673899220298,20.0,23.591,23.573,21.46196354]
[1673899220510,20.0,23.591,23.574,20.0]
[1673899220711,17.0,23.59,23.574,20.0]
[1673899220917,17.0,23.59,23.575,21.46196354]
[1673899221122,20.0,23.589,23.575,21.46196354]
[1673899221333,17.0,23.588,23.574,20.0]
[1673899221563,20.0,23.587,23.574,21.46196354]
[1673899221767,17.0,23.586,23.575,20.0]
[1673899222273,17.0,23.586,23.574,21.46196354]
[1673899222479,20.0,23.585,23.552,20.0]
[1673899222704,17.0,23.584,23.552,121.278]
[1673899223116,20.0,23.585,23.552,121.278]
[1673899223745,15.66289058,23.584,23.56,37.0]
[1673899224178,15.66289058,23.584,23.561,20.0]
[1673899224386,15.66289058,23.584,23.562,17.0]
[1673899225328,20.0,23.585,23.562,17.0]
[1673899225538,20.0,23.585,23.564,20.0]
[1673899225750,20.0,23.585,23.565,37.0]
[1673899226700,20.0,23.587,23.565,37.0]
[1673899226926,20.0,23.587,23.566,20.0]
[1673899227129,20.0,23.587,23.568,20.0]
[1673899227449,20.0,23.587,23.57,20.0]
[1673899227655,134.377,23.592,23.571,20.0]
[1673899227867,134.377,23.592,23.572,17.0]
[1673899228176,134.377,23.592,23.573,20.0]
[1673899228400,134.377,23.592,23.574,17.0]
[1673899228720,134.377,23.592,23.575,20.0]
[1673899228894,134.377,23.592,23.573,20.0]
[1673899229547,134.377,23.592,23.563,20.0]
[1673899229952,20.0,23.589,23.563,20.0]
[1673899230274,17.0,23.588,23.563,20.0]
[1673899230487,20.0,23.587,23.563,20.0]
[1673899231225,20.0,23.587,23.565,20.0]
[1673899231413,17.0,23.586,23.565,20.0]
[1673899231838,17.0,23.586,23.563,20.0]
[1673899232159,20.0,23.585,23.563,20.0]
[1673899232370,17.0,23.584,23.563,20.0]
[1673899232777,17.0,23.584,23.564,17.0]
[1673899232993,17.0,23.584,23.565,20.0]
[1673899233217,17.0,23.584,23.566,17.0]
[1673899233759,20.0,23.585,23.567,20.0]
[1673899233963,20.0,23.585,23.568,17.0]
[1673899234611,20.0,23.591,23.568,17.0]
[1673899234820,20.0,23.591,23.569,41.46196354]
[1673899235020,20.0,23.591,23.57,17.0]
[1673899235348,20.0,23.591,23.571,20.0]
[1673899236399,20.0,23.589,23.568,20.0]
[1673899236589,20.0,23.589,23.569,17.0]
[1673899236806,20.0,23.591,23.57,20.0]
[1673899237020,20.0,23.591,23.571,17.0]
[1673899237228,114.377,23.592,23.572,20.0]
[1673899237445,114.377,23.592,23.573,37.0]
[1673899237772,20.0,23.591,23.574,20.0]
[1673899237963,20.0,23.591,23.575,17.0]
[1673899239854,114.377,23.592,23.575,17.0]
[1673899240796,20.0,23.591,23.575,17.0]
[1673899241964,114.377,23.592,23.575,17.0]
[1673899242494,114.377,23.592,23.576,40.0]
[1673899242710,114.377,23.592,23.577,17.0]
[1673899242900,114.377,23.592,23.578,20.0]
[1673899243110,114.377,23.592,23.579,17.0]
[1673899243328,114.377,23.592,23.577,17.0]
[1673899243329,20.0,23.591,23.577,17.0]
[1673899243543,20.0,23.591,23.571,21.46196354]
[1673899243766,20.0,23.591,23.572,17.0]
[1673899244491,20.0,23.591,23.571,17.0]
[1673899245125,20.0,23.591,23.572,20.0]
[1673899245344,17.0,23.59,23.572,20.0]
[1673899245950,20.0,23.589,23.572,20.0]
[1673899246286,19.5,23.589,23.572,20.0]
[1673899246492,19.5,23.589,23.573,17.0]
[1673899246701,19.5,23.589,23.574,20.0]
[1673899247447,19.5,23.589,23.575,17.0]
[1673899248061,20.0,23.591,23.573,17.0]
[1673899248273,114.377,23.592,23.575,20.0]
[1673899248687,114.377,23.592,23.576,21.46196354]
[1673899248911,20.0,23.591,23.574,20.0]
[1673899249330,20.0,23.591,23.57,61.46196354]
[1673899250175,20.0,23.591,23.571,21.46196354]
[1673899250370,20.0,23.591,23.572,37.0]
[1673899250896,59.61102397,23.591,23.572,37.0]
[1673899251107,59.61102397,23.591,23.573,20.0]
[1673899251311,59.61102397,23.591,23.574,20.0]
[1673899252069,59.61102397,23.591,23.574,41.46196354]
[1673899252282,59.61102397,23.591,23.574,62.92392708]
[1673899252469,17.0,23.59,23.557,20.0]
[1673899252812,20.0,23.589,23.557,20.0]
[1673899253011,100.19477751,23.589,23.557,20.0]
[1673899253210,57.7549373,23.588,23.557,20.0]
[1673899253423,77.7549373,23.588,23.557,20.0]
[1673899253633,38.10510397,23.587,23.556,70.3515]
[1673899253846,37.0,23.586,23.556,70.3515]
[1673899254059,82.16354254,23.586,23.547,108.9404]
[1673899254277,96.127674,23.585,23.548,20.0]
[1673899254591,79.38475063,23.584,23.548,20.0]
[1673899254779,20.0,23.583,23.549,21.46196354]
[1673899254991,37.0,23.582,23.55,20.0]
[1673899255211,20.0,23.581,23.551,20.0]
[1673899255417,37.0,23.58,23.552,37.0]
[1673899255631,74.48925063,23.58,23.552,37.0]
[1673899255841,17.0,23.58,23.552,58.46196354]
[1673899256054,17.0,23.58,23.554,20.0]
[1673899256293,17.0,23.58,23.555,37.0]
[1673899256589,17.0,23.58,23.555,58.46196354]
[1673899256797,44.29317354,23.589,23.556,21.46196354]
[1673899257116,192.01712509,23.641,23.556,21.46196354]
[1673899257117,113.0428,23.651,23.591,4.87812242]
[1673899257303,113.0428,23.651,23.592,4.89083]
[1673899257513,113.0428,23.651,23.614,130.14192995]
[1673899257725,20.0,23.647,23.615,20.0]
[1673899257935,20.0,23.647,23.615,41.46196354]
[1673899258249,20.0,23.65,23.616,154.97435483]
[1673899258472,20.0,23.65,23.617,20.0]
[1673899258784,113.0428,23.651,23.618,20.0]
[1673899259107,113.0428,23.651,23.619,46.27132222]
[1673899259300,113.0428,23.651,23.62,20.0]
[1673899259510,113.0428,23.651,23.62,58.46196354]
[1673899259723,20.0,23.65,23.621,41.46196354]
[1673899259931,20.0,23.65,23.622,17.0]
[1673899260151,20.0,23.65,23.622,38.46196354]
[1673899260367,24.82402033,23.649,23.622,17.0]
[1673899260582,44.62890154,23.649,23.623,21.46196354]
[1673899260791,20.0,23.648,23.622,17.0]
[1673899261004,20.0,23.646,23.622,17.0]
[1673899261221,20.0,23.646,23.623,20.0]
[1673899261436,61.76387488,23.646,23.624,17.0]
[1673899261753,20.0,23.646,23.625,20.0]
[1673899261959,20.0,23.646,23.626,17.0]
[1673899262283,20.0,23.645,23.591,20.0]
[1673899262468,20.0,23.645,23.618,21.46196354]
[1673899262684,19.5,23.645,23.618,21.46196354]
[1673899262893,37.0,23.644,23.618,21.46196354]
[1673899263328,20.0,23.644,23.618,21.46196354]
[1673899263940,20.0,23.644,23.619,17.0]
[1673899264466,20.0,23.644,23.62,41.46196354]
[1673899264685,20.0,23.644,23.621,17.0]
[1673899264895,20.0,23.644,23.621,38.46196354]
[1673899265111,20.0,23.644,23.622,41.46196354]
[1673899265322,20.0,23.644,23.611,20.0]
[1673899265515,20.0,23.642,23.62,21.46196354]
[1673899265722,20.0,23.641,23.611,20.0]
[1673899266046,20.0,23.639,23.612,21.46196354]
[1673899266260,20.0,23.637,23.612,21.46196354]
[1673899266674,17.0,23.636,23.612,21.46196354]
[1673899266911,20.0,23.637,23.612,21.46196354]
[1673899267090,20.0,23.638,23.612,21.46196354]
[1673899267091,20.0,23.638,23.613,20.0]
[1673899267307,20.0,23.645,23.613,20.0]
[1673899267517,20.0,23.645,23.614,21.46196354]
[1673899267727,20.0,23.645,23.616,20.0]
[1673899268262,20.0,23.645,23.619,20.0]
[1673899268473,20.0,23.645,23.62,17.0]
[1673899268675,20.0,23.645,23.621,20.0]
[1673899268882,20.0,23.645,23.623,20.0]
[1673899269202,20.0,23.645,23.624,37.0]
[1673899269522,192.80423561,23.669,23.625,20.0]
[1673899269729,86.0445055,23.657,23.626,24.02537025]
[1673899269927,20.0,23.656,23.626,17.0]
[1673899270144,20.0,23.655,23.626,17.0]
[1673899270347,20.0,23.655,23.627,42.75573869]
[1673899270558,20.0,23.654,23.628,17.0]
[1673899270777,20.0,23.653,23.626,17.0]
[1673899270989,37.0,23.652,23.625,17.0]
[1673899271724,20.0,23.651,23.625,17.0]
[1673899271923,37.0,23.65,23.625,17.0]
[1673899272259,20.0,23.649,23.625,17.0]
[1673899272578,20.0,23.651,23.626,21.46196354]
[1673899272889,20.0,23.651,23.627,17.0]
[1673899273075,20.0,23.651,23.626,42.75573869]
[1673899273282,20.0,23.65,23.626,42.75573869]
[1673899273514,20.0,23.65,23.627,20.0]
[1673899274364,20.0,23.65,23.628,17.0]
[1673899274553,115.2949,23.653,23.628,17.0]
[1673899274770,20.0,23.652,23.63,20.0]
[1673899275180,20.0,23.652,23.629,42.75573869]
[1673899275181,40.0,23.652,23.629,42.75573869]
[1673899275393,20.0,23.651,23.629,42.75573869]
[1673899275596,26.44,23.651,23.623,20.0]
[1673899275812,31.3355,23.651,23.607,7.7967582]
[1673899276040,24.8955,23.651,23.607,7.7967582]
[1673899276253,23.44,23.65,23.607,7.7967582]
[1673899276449,20.0,23.649,23.607,7.7967582]
[1673899276654,17.0,23.648,23.607,20.0]
[1673899276870,20.0,23.647,23.607,20.0]
[1673899277072,17.0,23.646,23.607,20.0]
[1673899277283,20.0,23.645,23.607,20.0]
[1673899277595,20.0,23.644,23.607,20.0]
[1673899277826,6.44,23.644,23.609,20.0]
[1673899278143,110.8144,23.647,23.611,4.48615443]
[1673899278340,110.8144,23.647,23.612,4.88669]
[1673899278553,110.8144,23.647,23.613,7.31159068]
[1673899278770,110.8144,23.647,23.615,6.52331981]
[1673899278978,110.8144,23.647,23.616,44.88586]
[1673899279175,110.8144,23.647,23.617,10.13801354]
[1673899279386,110.8144,23.647,23.619,26.54763599]
[1673899279607,110.8144,23.647,23.621,4.19718016]
[1673899279805,110.8144,23.647,23.623,20.0]
[1673899280018,110.8144,23.647,23.624,17.0]
[1673899280245,110.8144,23.647,23.625,20.0]
[1673899280443,20.0,23.656,23.626,17.0]
[1673899280661,111.8207,23.655,23.626,17.0]
[1673899280982,111.8207,23.655,23.628,4.91840762]
[1673899281194,111.8207,23.655,23.629,21.88317]
[1673899281503,111.8207,23.655,23.632,20.0]
[1673899281714,111.8207,23.655,23.633,37.0]
[1673899281923,110.7041,23.66,23.634,20.0]
[1673899282130,20.0,23.659,23.635,37.0]
[1673899282669,20.0,23.661,23.636,73.87879269]
[1673899282892,20.0,23.669,23.638,20.0]
[1673899283088,20.0,23.669,23.639,17.0]
[1673899283281,20.0,23.661,23.639,68.31299613]
[1673899283485,20.0,23.661,23.64,21.46196354]
[1673899283701,20.0,23.661,23.641,17.0]
[1673899283923,20.0,23.661,23.641,46.85103259]
[1673899284218,20.0,23.661,23.641,21.46196354]
[1673899284764,20.0,23.656,23.641,21.46196354]
[1673899284989,20.0,23.656,23.635,58.68256961]
[1673899285169,20.0,23.655,23.63,21.46196354]
[1673899285596,20.0,23.656,23.632,21.46196354]
[1673899285925,20.0,23.661,23.634,20.0]
[1673899286126,20.0,23.656,23.635,20.0]
[1673899286351,20.0,23.656,23.632,21.46196354]
[1673899286565,20.0,23.656,23.635,21.46196354]
[1673899287404,20.0,23.656,23.636,17.0]
[1673899287599,20.0,23.656,23.635,21.46196354]
[1673899287804,20.0,23.656,23.637,21.46196354]
[1673899288240,20.0,23.656,23.628,20.0]
[1673899288452,20.0,23.656,23.629,21.46196354]
[1673899288657,20.0,23.656,23.63,20.0]
[1673899288872,20.0,23.656,23.631,20.0]
[1673899289075,20.0,23.656,23.632,4.88255]
[1673899289284,20.0,23.656,23.632,46.34451354]
[1673899289490,20.0,23.659,23.633,21.46196354]
[1673899289696,20.0,23.656,23.635,20.0]
[1673899289905,20.0,23.656,23.636,17.0]
[1673899290125,20.0,23.656,23.637,20.0]
[1673899290339,20.0,23.659,23.638,17.0]
[1673899290546,20.0,23.659,23.638,38.46196354]
[1673899290766,20.0,23.656,23.639,21.46196354]
[1673899291163,20.0,23.656,23.637,20.0]
[1673899291377,20.0,23.656,23.638,21.46196354]
[1673899291902,20.0,23.659,23.639,30.92774961]
[1673899292113,20.0,23.656,23.638,21.46196354]
[1673899292328,20.0,23.656,23.639,21.46196354]
[1673899293391,20.0,23.656,23.632,20.0]
[1673899293583,20.0,23.656,23.635,20.0]
[1673899293794,20.0,23.656,23.636,20.0]
[1673899294025,20.0,23.656,23.636,41.46196354]
[1673899294228,20.0,23.656,23.637,62.92392708]
[1673899294442,20.0,23.661,23.637,41.46196354]
[1673899294644,20.0,23.669,23.638,58.46196354]
[1673899294864,20.0,23.669,23.639,24.88111]
[1673899295057,20.0,23.669,23.64,21.8809]
[1673899295262,20.0,23.669,23.641,20.0]
[1673899295473,20.0,23.669,23.643,20.0]
[1673899295699,20.0,23.669,23.644,20.0]
[1673899295915,83.5445055,23.657,23.645,17.0]
[1673899296133,20.0,23.656,23.644,20.0]
[1673899296346,20.0,23.656,23.64,20.0]
[1673899297174,20.0,23.656,23.641,21.46196354]
[1673899297495,83.5445055,23.657,23.641,21.46196354]
[1673899297496,83.5445055,23.657,23.642,37.0]
[1673899297923,83.5445055,23.657,23.643,41.46196354]
[1673899298243,83.5445055,23.657,23.644,21.46196354]
[1673899298459,20.0,23.656,23.624,418.99082988]
[1673899298765,20.0,23.655,23.63,418.99082988]
[1673899299082,37.0,23.655,23.607,5.54477724]
[1673899299275,20.0,23.655,23.622,21.46196354]
[1673899299695,20.0,23.655,23.624,20.0]
[1673899299916,20.0,23.655,23.625,4.884]
[1673899300532,20.0,23.655,23.627,20.0]
[1673899300742,20.0,23.655,23.628,20.0]
[1673899301288,37.69445686,23.655,23.628,20.0]
[1673899301508,37.69445686,23.655,23.629,17.0]
[1673899301685,20.0,23.655,23.63,20.0]
[1673899301892,20.0,23.655,23.625,4.884]
[1673899302102,20.0,23.655,23.621,447.32366157]
[1673899302103,37.0,23.654,23.621,447.32366157]
[1673899302341,50.18496354,23.654,23.621,468.78562511]
[1673899302525,20.0,23.653,23.622,20.0]
[1673899302741,20.0,23.652,23.622,20.0]
[1673899303179,20.0,23.651,23.622,20.0]
[1673899303388,20.0,23.65,23.622,20.0]
[1673899303704,20.0,23.649,23.622,20.0]
[1673899303896,20.0,23.648,23.621,439.81279342]
[1673899304108,20.0,23.647,23.621,439.81279342]
[1673899304319,20.0,23.647,23.622,21.46196354]
[1673899304530,20.0,23.647,23.623,20.0]
[1673899304863,129.2948,23.647,23.624,21.46196354]
[1673899305675,129.2948,23.647,23.625,37.0]
[1673899305900,129.2948,23.647,23.625,44.74437668]
[1673899306116,129.2948,23.647,23.625,37.0]
[1673899306519,129.2948,23.647,23.626,21.46196354]
[1673899306733,129.2948,23.647,23.627,17.0]
[1673899307273,129.2948,23.647,23.628,21.46196354]
[1673899307888,129.2948,23.647,23.629,17.0]
[1673899308305,129.2948,23.647,23.629,38.46196354]
[1673899310011,119.5142,23.65,23.629,38.46196354]
[1673899310320,20.0,23.654,23.63,41.46196354]
[1673899310630,114.3709,23.656,23.632,20.0]
[1673899310844,114.3709,23.656,23.633,37.0]
[1673899311240,114.3709,23.656,23.633,41.46196354]
[1673899311688,20.0,23.655,23.633,20.0]
[1673899312106,20.0,23.655,23.623,6.06413197]
[1673899312294,20.0,23.654,23.624,20.0]
[1673899312650,20.0,23.654,23.626,21.46196354]
[1673899312651,20.0,23.653,23.626,21.46196354]
[1673899313039,20.0,23.652,23.626,21.46196354]
[1673899313571,20.0,23.651,23.627,20.0]
[1673899313783,20.0,23.653,23.628,17.0]
[1673899314099,20.0,23.653,23.628,38.46196354]
[1673899314313,20.0,23.653,23.629,82.92392708]
[1673899314502,20.0,23.653,23.63,17.0]
[1673899314708,20.0,23.653,23.632,20.0]
[1673899314922,20.0,23.653,23.633,17.0]
[1673899315143,20.0,23.653,23.634,20.0]
[1673899315344,20.0,23.653,23.635,17.0]
[1673899315555,20.0,23.655,23.635,17.0]
[1673899315780,20.0,23.655,23.635,38.46196354]
[1673899315989,20.0,23.655,23.636,21.46196354]
[1673899316197,134.3709,23.656,23.637,17.0]
[1673899316425,114.3709,23.656,23.637,17.0]
[1673899316641,114.3709,23.656,23.635,17.0]
[1673899316960,20.0,23.655,23.636,20.0]
[1673899317149,20.0,23.655,23.637,17.0]
[1673899317363,20.0,23.655,23.637,38.46196354]
[1673899317800,20.0,23.655,23.638,21.46196354]
[1673899318021,20.0,23.655,23.634,20.0]
[1673899318329,20.0,23.655,23.635,21.46196354]
[1673899318952,83.5445055,23.657,23.636,45.17470185]
[1673899319169,83.5445055,23.657,23.637,20.0]
[1673899319366,83.5445055,23.657,23.639,20.0]
[1673899319699,83.5445055,23.657,23.64,37.0]
[1673899319890,83.5445055,23.657,23.64,58.46196354]
[1673899320095,83.5445055,23.657,23.642,20.0]
[1673899320325,83.5445055,23.657,23.643,37.0]
[1673899320539,83.5445055,23.657,23.643,58.46196354]
[1673899320854,83.5445055,23.657,23.644,21.46196354]
[1673899321046,83.5445055,23.657,23.645,17.0]
[1673899321470,83.5445055,23.657,23.646,21.46196354]
[1673899321672,83.5445055,23.657,23.647,17.0]
[1673899322223,83.5445055,23.657,23.643,20.0]
[1673899322410,20.0,23.656,23.64,20.0]
[1673899322624,20.0,23.656,23.636,20.0]
[1673899322825,20.0,23.656,23.635,20.0]
[1673899323158,83.5445055,23.657,23.638,20.0]
[1673899323564,83.5445055,23.657,23.639,21.46196354]
[1673899323779,83.5445055,23.657,23.638,20.0]
[1673899324005,20.0,23.656,23.638,20.0]
[1673899324322,20.0,23.656,23.629,20.0]
[1673899324631,20.0,23.656,23.61,6.01342809]
[1673899324832,20.0,23.654,23.63,21.46196354]
[1673899325554,138.2389,23.653,23.614,20.0]
[1673899325768,20.0,23.652,23.625,21.46196354]
[1673899325983,20.0,23.651,23.625,21.46196354]
[1673899326309,20.0,23.65,23.626,20.0]
[1673899326520,20.0,23.649,23.626,20.0]
[1673899326839,20.0,23.651,23.627,21.46196354]
[1673899327038,20.0,23.651,23.628,20.0]